fUST/lending_fUST_20251212
["ID","MTS","AMOUNT","RATE_DAILY","PERIOD"]
[398315539,1765529284641,437.55,7.178e-05,2]
[398315540,1765529285048,875.11,7.831e-05,2]
[398315541,1765529285478,5.94852333,8.483e-05,2]
[398315542,1765529285508,1306.71147667,8.483e-05,2]
[398315543,1765529297883,5000.0,8.684e-05,2]
[398315544,1765529305793,3693.29852333,8.684e-05,2]
[398315545,1765529305821,1306.70147667,8.684e-05,2]
[398315546,1765529321528,5000.0,8.684e-05,2]
[398315547,1765529329762,3693.30852333,8.684e-05,2]
[398315548,1765529329785,1306.69147667,8.684e-05,2]
[398315549,1765529344937,5000.0,8.684e-05,2]
[398315551,1765529352645,3693.31852333,8.684e-05,2]
[398315552,1765529352666,1306.68147667,8.684e-05,2]
[398315554,1765529364615,715.55,7.187e-05,2]
[398315555,1765529365029,1431.11,7.84e-05,2]
[398315556,1765529365467,2146.66,8.493e-05,2]
[398315557,1765529369121,-150.0,8.8e-05,2]
[398315558,1765529369143,-158.76,8.8e-05,2]
[398315559,1765529369162,-158.73,8.8e-05,2]
[398315560,1765529369181,-545.0,8.923e-05,2]
[398315561,1765529369201,-170.83871844,9.024e-05,2]
[398315562,1765529369222,-2862.22,9.147e-05,2]
[398315563,1765529369242,-158.76,9.5e-05,2]
[398315564,1765529369260,-1042.13439975,9.693e-05,2]
[398315565,1765529369381,4400.00852333,8.684e-05,2]
[398315566,1765529372432,-599.99147667,8.684e-05,2]
[398315596,1765529432116,-157.85,8.8e-05,2]
[398315598,1765529432125,-163.15,9.5e-05,2]
[398315649,1765529438264,-1733.72171815,9.5e-05,2]
[398315651,1765529438276,-3103.12828185,9.5e-05,2]
[398315653,1765529438287,-96.70346558,9.5e-05,2]
[398315741,1765529440417,-456.29653442,9.5e-05,2]
[398315742,1765529440427,-792.0,9.595e-05,2]
[398315743,1765529440436,-5000.0,9.596e-05,2]
[398315744,1765529440446,-300.0,9.692e-05,2]
[398315745,1765529440455,-283.0,9.692e-05,2]
[398315746,1765529440464,-957.86560025,9.693e-05,2]
[398315747,1765529440473,-157.85,9.7e-05,2]
[398315748,1765529440483,-216.72310881,0.00010221,2]
[398315749,1765529440492,-157.85,0.000105,2]
[398315750,1765529440500,-420.0,0.00010661,2]
[398315751,1765529440511,-177.0,0.000108,2]
[398315752,1765529440520,-500.0,0.00011092,2]
[398315753,1765529440530,-159.80384714,0.00011092,2]
[398315754,1765529440539,-363.51681234,0.00011092,2]
[398315755,1765529440548,-500.0,0.00011092,2]
[398315757,1765529440557,-500.0,0.00011092,2]
[398315758,1765529440566,-500.0,0.00011092,2]
[398315761,1765529440575,-500.0,0.00011092,2]
[398315762,1765529440585,-500.0,0.00011092,2]
[398315763,1765529440593,-500.0,0.00011092,2]
[398315765,1765529440602,-500.0,0.00011092,2]
[398315766,1765529440611,-596.25351899,0.00011092,2]
[398315768,1765529440620,-504.53973729,0.00011092,2]
[398315769,1765529440629,-500.0,0.00011092,2]
[398315771,1765529440637,-500.0,0.00011092,2]
[398315772,1765529440646,-500.0,0.00011092,2]
[398315773,1765529440655,-500.0,0.00011092,2]
[398315775,1765529440664,-500.0,0.00011092,2]
[398315776,1765529440674,-500.0,0.00011092,2]
[398315777,1765529440683,-500.0,0.00011092,2]
[398315778,1765529440692,-500.0,0.00011092,2]
[398315779,1765529440702,-500.0,0.00011092,2]
[398315780,1765529440711,-500.0,0.00011092,2]
[398315781,1765529440720,-260.32515785,0.00011092,2]
[398315782,1765529440729,-500.0,0.00011092,2]
[398315783,1765529440738,-500.0,0.00011092,2]
[398315784,1765529440748,-500.0,0.00011092,2]
[398315785,1765529440757,-500.0,0.00011092,2]
[398315786,1765529440766,-500.0,0.00011092,2]
[398315787,1765529440775,-500.0,0.00011092,2]
[398315788,1765529440784,-500.0,0.00011092,2]
[398315789,1765529440793,-500.0,0.00011092,2]
[398315790,1765529440802,-500.0,0.00011092,2]
[398315791,1765529440812,-500.0,0.00011092,2]
[398315792,1765529440821,-500.0,0.00011092,2]
[398315793,1765529440830,-500.0,0.00011092,2]
[398315794,1765529440839,-500.0,0.00011092,2]
[398315795,1765529440849,-500.0,0.00011092,2]
[398315796,1765529440858,-500.0,0.00011092,2]
[398315797,1765529440867,-500.0,0.00011092,2]
[398315798,1765529440877,-500.0,0.00011092,2]
[398315799,1765529440886,-500.0,0.00011092,2]
[398315800,1765529440896,-500.0,0.00011092,2]
[398315802,1765529440905,-642.57993251,0.00011092,2]
[398315803,1765529440914,-500.0,0.00011092,2]
[398315805,1765529440924,-500.0,0.00011092,2]
[398315806,1765529440934,-500.0,0.00011092,2]
[398315807,1765529440943,-500.0,0.00011092,2]
[398315808,1765529440952,-500.0,0.00011092,2]
[398315809,1765529440962,-231.04020938,0.00011092,2]
[398315813,1765529443288,-300.0,9.405e-05,2]
[398315814,1765529443300,-780.75750266,9.405e-05,2]
[398315815,1765529444937,624.48,7.188e-05,2]
[398315816,1765529445000,1248.97,7.841e-05,2]
[398315817,1765529445406,1873.45,8.495e-05,2]
[398315821,1765529447077,-2497.94,9.148e-05,2]
[398315822,1765529447086,-2191.33203357,9.405e-05,2]
[398315823,1765529527904,545.0,7.176e-05,2]
[398315824,1765529528360,1090.01,7.828e-05,2]
[398315825,1765529528577,1635.01,8.481e-05,2]
[398315826,1765529608045,503.39,7.316e-05,2]
[398315827,1765529608458,1006.77,7.981e-05,2]
[398315828,1765529608866,1472.93,8.646e-05,2]
[398315829,1765529608894,37.23,8.646e-05,2]
[398315830,1765529635914,5000.0,8.686e-05,2]
[398315831,1765529651349,4962.78,8.686e-05,2]
[398315832,1765529651369,37.22,8.686e-05,2]
[398315833,1765529659630,5000.0,8.686e-05,2]
[398315834,1765529675899,4962.79,8.686e-05,2]
[398315835,1765529675925,37.21,8.686e-05,2]
[398315836,1765529683899,5000.0,8.686e-05,2]
[398315837,1765529688449,464.95,7.385e-05,2]
[398315838,1765529688963,929.89,8.057e-05,2]
[398315839,1765529698961,5000.0,8.688e-05,2]
[398315840,1765529706759,5000.0,8.688e-05,2]
[398315841,1765529722476,0.01,8.688e-05,2]
[398315842,1765529722501,4999.99,8.688e-05,2]
[398315843,1765529730254,5000.0,8.688e-05,2]
[398315844,1765529745378,0.02,8.688e-05,2]
[398315845,1765529745405,4999.98,8.688e-05,2]
[398315846,1765529753151,5000.0,8.688e-05,2]
[398315847,1765529768819,0.03,8.688e-05,2]
[398315848,1765529768843,4999.97,8.688e-05,2]
[398315849,1765529769212,447.19,7.322e-05,2]
[398315850,1765529769630,894.39,7.988e-05,2]
[398315851,1765529770071,1341.58,8.653e-05,2]
[398315852,1765529776630,5000.0,8.688e-05,2]
[398315853,1765529792772,5000.0,8.688e-05,2]
[398315854,1765529800687,0.01,8.688e-05,2]
[398315855,1765529800707,4999.99,8.688e-05,2]
[398315856,1765529815944,5000.0,8.688e-05,2]
[398315857,1765529824213,5000.0,8.688e-05,2]
[398315858,1765529839574,5000.0,8.688e-05,2]
[398315859,1765529847136,0.01,8.688e-05,2]
[398315860,1765529847158,4999.99,8.688e-05,2]
[398315861,1765529849203,413.04,7.29e-05,2]
[398315862,1765529850259,826.09,7.952e-05,2]
[398315863,1765529850442,1239.13,8.615e-05,2]
[398315865,1765529863052,2521.76,8.688e-05,2]
[398315866,1765529863075,2478.24,8.688e-05,2]
[398315867,1765529871072,5000.0,8.688e-05,2]
[398315868,1765529894865,2521.77,8.688e-05,2]
[398315869,1765529894897,2478.23,8.688e-05,2]
[398315872,1765529917081,5000.0,8.688e-05,2]
[398315875,1765529929162,381.5,7.379e-05,2]
[398315876,1765529929556,763.0,8.049e-05,2]
[398315877,1765529938829,1377.28,8.688e-05,2]
[398315878,1765529938850,3622.72,8.688e-05,2]
[398315879,1765529961294,5000.0,8.688e-05,2]
[398315880,1765529983766,1377.29,8.688e-05,2]
[398315881,1765529983788,3622.71,8.688e-05,2]
[398315886,1765530009758,366.94,7.452e-05,2]
[398315887,1765530010173,733.87,8.129e-05,2]
[398315888,1765530085885,5000.0,8.688e-05,2]
[398315889,1765530089931,276.49,7.348e-05,2]
[398315890,1765530089955,76.44,7.348e-05,2]
[398315891,1765530090325,705.85,8.016e-05,2]
[398315892,1765530090784,1058.78,8.684e-05,2]
[398315893,1765530108382,5000.0,8.688e-05,2]
[398315894,1765530130415,5000.0,8.688e-05,2]
[398315895,1765530152476,0.01,8.688e-05,2]
[398315896,1765530152497,4999.99,8.688e-05,2]
[398315897,1765530169841,325.97,7.396e-05,2]
[398315898,1765530170240,651.95,8.068e-05,2]
[398315899,1765530175173,4022.1,8.688e-05,2]
[398315900,1765530175196,977.9,8.688e-05,2]
[398315901,1765530198225,5000.0,8.688e-05,2]
[398315902,1765530206383,4022.11,8.688e-05,2]
[398315903,1765530206409,977.89,8.688e-05,2]
[398315904,1765530221544,5000.0,8.688e-05,2]
[398315905,1765530229330,4022.12,8.688e-05,2]
[398315906,1765530229355,977.88,8.688e-05,2]
[398315907,1765530245226,5000.0,8.688e-05,2]
[398315908,1765530249609,313.53,7.316e-05,2]
[398315909,1765530250496,627.06,7.981e-05,2]
[398315910,1765530250929,940.59,8.646e-05,2]
[398315911,1765530253013,2140.95,8.688e-05,2]
[398315912,1765530253037,2859.05,8.688e-05,2]
[398315913,1765530268159,5000.0,8.688e-05,2]
[398315914,1765530275965,2140.96,8.688e-05,2]
[398315915,1765530275988,2859.04,8.688e-05,2]
[398315916,1765530291641,5000.0,8.688e-05,2]
[398315917,1765530299739,2140.97,8.688e-05,2]
[398315918,1765530299762,2859.03,8.688e-05,2]
[398315919,1765530315012,5000.0,8.69e-05,2]
[398315920,1765530322835,5000.0,8.69e-05,2]
[398315921,1765530330364,0.01,7.261e-05,2]
[398315922,1765530330390,289.58,7.261e-05,2]
[398315923,1765530330690,579.17,7.921e-05,2]
[398315924,1765530331120,868.76,8.581e-05,2]
[398315925,1765530338239,5000.0,8.69e-05,2]
[398315926,1765530346053,3262.5,8.69e-05,2]
[398315927,1765530346080,1737.5,8.69e-05,2]
[398315928,1765530363335,5000.0,8.69e-05,2]
[398315929,1765530371706,3262.51,8.69e-05,2]
[398315930,1765530371730,1737.49,8.69e-05,2]
[398315931,1765530386892,5000.0,8.69e-05,2]
[398315932,1765530394632,3262.52,8.69e-05,2]
[398315933,1765530394658,1737.48,8.69e-05,2]
[398315934,1765530410214,267.47,7.278e-05,2]
[398315935,1765530410604,534.94,7.94e-05,2]
[398315936,1765530410955,5000.0,8.69e-05,2]
[398315937,1765530411024,802.42,8.602e-05,2]
[398315938,1765530419193,1657.7,8.69e-05,2]
[398315939,1765530419215,3342.3,8.69e-05,2]
[398315940,1765530434523,5000.0,8.69e-05,2]
[398315941,1765530442366,1657.71,8.69e-05,2]
[398315942,1765530442389,3342.29,8.69e-05,2]
[398315943,1765530457627,5000.0,8.69e-05,2]
[398315944,1765530465544,1657.72,8.69e-05,2]
[398315945,1765530465566,3342.28,8.69e-05,2]
[398315946,1765530481210,5000.0,8.69e-05,2]
[398315947,1765530489223,1657.73,8.69e-05,2]
[398315948,1765530489251,3342.27,8.69e-05,2]
[398315949,1765530490757,247.05,7.272e-05,2]
[398315950,1765530491154,494.09,7.933e-05,2]
[398315951,1765530491703,741.14,8.594e-05,2]
[398315952,1765530504909,5000.0,8.69e-05,2]
[398315953,1765530513909,175.46,8.69e-05,2]
[398315954,1765530513937,4824.54,8.69e-05,2]
[398315955,1765530529201,5000.0,8.69e-05,2]
[398315956,1765530536879,175.47,8.69e-05,2]
[398315957,1765530536903,4824.53,8.69e-05,2]
[398315958,1765530552499,5000.0,8.69e-05,2]
[398315959,1765530560836,175.48,8.69e-05,2]
[398315960,1765530560858,4824.52,8.69e-05,2]
[398315961,1765530571084,228.18,7.328e-05,2]
[398315962,1765530571485,456.36,7.994e-05,2]
[398315963,1765530571901,684.55,8.66e-05,2]
[398315964,1765530576012,3806.4,8.69e-05,2]
[398315965,1765530577214,-1193.6,8.69e-05,2]
[398315966,1765530583935,5000.0,8.69e-05,2]
[398315967,1765530600120,2612.81,8.69e-05,2]
[398315968,1765530600143,2387.19,8.69e-05,2]
[398315991,1765530607510,5000.0,8.69e-05,2]
[398315995,1765530622613,2612.82,8.69e-05,2]
[398315996,1765530622636,2387.18,8.69e-05,2]
[398315997,1765530630373,5000.0,8.69e-05,2]
[398316023,1765530632255,-157.85,8.8e-05,2]
[398316025,1765530632265,-150.0,8.82e-05,2]
[398316026,1765530632275,-2.36679657,8.82e-05,2]
[398316029,1765530632287,-541.63320343,8.82e-05,2]
[398316031,1765530632297,-333.00498064,9.326e-05,2]
[398316033,1765530632309,-250.0,9.326e-05,2]
[398316052,1765530638353,-329.72501936,9.326e-05,2]
[398316053,1765530638363,-452.11629838,9.992e-05,2]
[398316054,1765530638375,-688.79370162,9.992e-05,2]
[398316055,1765530638385,-427.65889102,0.00010499,2]
[398316072,1765530643486,-772.34110898,0.00010499,2]
[398316073,1765530643497,-157.85,0.000105,2]
[398316074,1765530643511,-1369.09,0.00010658,2]
[398316075,1765530643520,-177.0,0.0001082,2]
[398316076,1765530643530,-300.0,0.00010837,2]
[398316077,1765530643540,-2000.0,0.00011091,2]
[398316078,1765530643550,-18465.08362891,0.00011303,2]
[398316079,1765530643573,-297.58088623,0.00011303,2]
[398316080,1765530643585,-5910.00008699,0.00011303,2]
[398316081,1765530643597,-4381.53923045,0.00011303,2]
[398316082,1765530643608,-272.83182917,0.00011303,2]
[398316083,1765530643690,-107.07026772,0.00011303,2]
[398316113,1765530646423,-5000.0,0.00010394,2]
[398316114,1765530646433,-9030.85764871,0.00011303,2]
[398316115,1765530646444,-1437.1938843,0.00011303,2]
[398316116,1765530646530,-1411.95357189,0.00011303,2]
[398316117,1765530651937,167.2,7.33e-05,2]
[398316118,1765530652338,334.39,7.997e-05,2]
[398316119,1765530652924,501.59,8.663e-05,2]
[398316120,1765530669535,1609.65,8.69e-05,2]
[398316121,1765530669556,3390.35,8.69e-05,2]
[398316122,1765530691717,5000.0,8.69e-05,2]
[398316123,1765530714537,1609.66,8.69e-05,2]
[398316124,1765530714558,3390.34,8.69e-05,2]
[398316125,1765530733210,158.25,7.305e-05,2]
[398316126,1765530733610,316.49,7.969e-05,2]
[398316127,1765530734019,474.74,8.633e-05,2]
[398316128,1765530736263,5000.0,8.69e-05,2]
[398316130,1765530758717,660.19,8.69e-05,2]
[398316131,1765530758744,4339.81,8.69e-05,2]
[398316132,1765530780735,5000.0,8.69e-05,2]
[398316133,1765530803187,660.2,8.69e-05,2]
[398316134,1765530803211,4339.8,8.69e-05,2]
[398316135,1765530813291,151.89,7.86e-05,2]
[398316136,1765530813682,303.78,8.575e-05,2]
[398316137,1765530825945,5000.0,8.69e-05,2]
[398316138,1765530847938,204.54,8.69e-05,2]
[398316139,1765530847963,4795.46,8.69e-05,2]
[398316140,1765530856149,5000.0,8.69e-05,2]
[398316141,1765530871401,204.55,8.69e-05,2]
[398316142,1765530871424,4795.45,8.69e-05,2]
[398316143,1765530879173,5000.0,8.69e-05,2]
[398316144,1765530893447,150.0,7.306e-05,2]
[398316145,1765530893867,54.56,7.97e-05,2]
[398316146,1765530893890,237.62,7.97e-05,2]
[398316147,1765530894307,438.27,8.635e-05,2]
[398316148,1765530895861,5000.0,8.69e-05,2]
[398316149,1765530903668,4324.12,8.69e-05,2]
[398316150,1765530906892,-675.88,8.69e-05,2]
[398316151,1765530918917,5000.0,8.69e-05,2]
[398316152,1765530926786,3648.25,8.69e-05,2]
[398316153,1765530926808,1351.75,8.69e-05,2]
[398316154,1765530942744,5000.0,8.69e-05,2]
[398316155,1765530950772,3648.26,8.69e-05,2]
[398316156,1765530950798,1351.74,8.69e-05,2]
[398316157,1765530966461,5000.0,8.69e-05,2]
[398316158,1765530973444,150.0,7.309e-05,2]
[398316159,1765530973999,269.77,7.973e-05,2]
[398316160,1765530974271,404.65,8.638e-05,2]
[398316161,1765530974299,2823.85,8.69e-05,2]
[398316162,1765530974322,2176.15,8.69e-05,2]
[398316163,1765530990388,5000.0,8.69e-05,2]
[398316164,1765530998167,2823.86,8.69e-05,2]
[398316165,1765530998192,2176.14,8.69e-05,2]
[398316166,1765531013750,5000.0,8.69e-05,2]
[398316167,1765531022070,5000.0,8.69e-05,2]
[398316168,1765531037194,5000.0,8.69e-05,2]
[398316169,1765531044958,0.01,8.69e-05,2]
[398316170,1765531044981,4999.99,8.69e-05,2]
[398316171,1765531052621,150.0,7.301e-05,2]
[398316172,1765531053028,248.78,7.965e-05,2]
[398316173,1765531053452,373.17,8.629e-05,2]
[398316174,1765531060623,4228.07,8.69e-05,2]
[398316175,1765531060644,771.93,8.69e-05,2]
[398316176,1765531068432,5000.0,8.69e-05,2]
[398316177,1765531083746,4228.08,8.69e-05,2]
[398316178,1765531083770,771.92,8.69e-05,2]
[398316179,1765531091513,5000.0,8.69e-05,2]
[398316180,1765531106895,4228.09,8.69e-05,2]
[398316181,1765531106916,771.91,8.69e-05,2]
[398316182,1765531114638,5000.0,8.69e-05,2]
[398316183,1765531130148,4228.1,8.69e-05,2]
[398316184,1765531130170,771.9,8.69e-05,2]
[398316185,1765531132598,150.0,7.306e-05,2]
[398316186,1765531133001,229.13,7.971e-05,2]
[398316187,1765531133436,343.7,8.635e-05,2]
[398316188,1765531137624,5000.0,8.69e-05,2]
[398316189,1765531152777,3505.28,8.69e-05,2]
[398316190,1765531152802,1494.72,8.69e-05,2]
[398316191,1765531160602,5000.0,8.69e-05,2]
[398316192,1765531175949,3505.29,8.69e-05,2]
[398316193,1765531175974,1494.71,8.69e-05,2]
[398316194,1765531183712,5000.0,8.69e-05,2]
[398316195,1765531198875,3505.3,8.69e-05,2]
[398316196,1765531198898,1494.7,8.69e-05,2]
[398316197,1765531206680,5000.0,8.69e-05,2]
[398316198,1765531210782,150.0,7.316e-05,2]
[398316199,1765531211186,210.73,7.981e-05,2]
[398316200,1765531211618,316.1,8.646e-05,2]
[398316201,1765531221887,5000.0,8.69e-05,2]
[398316202,1765531229766,4683.91,8.69e-05,2]
[398316203,1765531229789,316.09,8.69e-05,2]
[398316204,1765531245431,5000.0,8.69e-05,2]
[398316205,1765531253216,4683.92,8.69e-05,2]
[398316206,1765531253240,316.08,8.69e-05,2]
[398316207,1765531287652,-5000.0,8.625e-05,2]
[398316208,1765531290662,0.01,7.354e-05,2]
[398316209,1765531290685,149.99,7.354e-05,2]
[398316210,1765531291008,193.5,8.022e-05,2]
[398316211,1765531299655,5000.0,8.625e-05,2]
[398316212,1765531333181,-5000.0,8.604e-05,2]
[398316213,1765531344574,0.01,8.604e-05,2]
[398316214,1765531344598,4999.99,8.604e-05,2]
[398316215,1765531370129,150.0,7.352e-05,2]
[398316216,1765531370529,184.76,8.02e-05,2]
[398316217,1765531378760,-5000.0,8.625e-05,2]
[398316218,1765531388839,0.01,8.625e-05,2]
[398316219,1765531388861,4999.99,8.625e-05,2]
[398316220,1765531448866,150.0,7.353e-05,2]
[398316221,1765531449253,176.24,8.021e-05,2]
[398316222,1765531526828,150.0,7.354e-05,2]
[398316223,1765531527214,167.94,8.022e-05,2]
[398316226,1765531603982,150.0,7.338e-05,2]
[398316227,1765531604380,159.84,8.006e-05,2]
[398316228,1765531605269,5000.0,8.421e-05,2]
[398316229,1765531627494,4045.99,8.421e-05,2]
[398316230,1765531627518,954.01,8.421e-05,2]
[398316233,1765531649518,5000.0,8.421e-05,2]
[398316234,1765531665146,4046.0,8.421e-05,2]
[398316235,1765531665171,954.0,8.421e-05,2]
[398316236,1765531682348,150.0,7.337e-05,2]
[398316237,1765531682774,151.96,8.004e-05,2]
[398316238,1765531687152,150.0,7.926e-05,2]
[398316239,1765531688378,5000.0,8.424e-05,2]
[398316240,1765531711191,4850.01,8.424e-05,2]
[398316241,1765531711213,149.99,8.424e-05,2]
[398316244,1765531732895,5000.0,8.424e-05,2]
[398316245,1765531756370,5000.0,8.424e-05,2]
[398316246,1765531764250,150.0,7.886e-05,2]
[398316247,1765531773125,-1764.3210774,8.514e-05,2]
[398316248,1765531779325,4850.01,8.424e-05,2]
[398316249,1765531779346,149.99,8.424e-05,2]
[398316250,1765531802558,5000.0,8.424e-05,2]
[398316251,1765531826077,4850.02,8.424e-05,2]
[398316252,1765531826099,149.98,8.424e-05,2]
[398316271,1765531832433,-1333.37,8.514e-05,2]
[398316272,1765531832445,-258.22366975,8.514e-05,2]
[398316273,1765531832487,-1644.08525285,8.514e-05,2]
[398316274,1765531832496,-539.0,8.514e-05,2]
[398316275,1765531832506,-159.63,8.603e-05,2]
[398316276,1765531832516,-157.86,8.8e-05,2]
[398316277,1765531832526,-239.45,9.32e-05,2]
[398316278,1765531832536,-300.0,9.745e-05,2]
[398316279,1765531832546,-1200.0,9.745e-05,2]
[398316280,1765531832556,-3577.7134862,9.746e-05,2]
[398316281,1765531832565,-177.0,9.926e-05,2]
[398316282,1765531832575,-300.0,9.94e-05,2]
[398316283,1765531832585,-300.0,9.94e-05,2]
[398316284,1765531832594,-300.0,9.94e-05,2]
[398316285,1765531832603,-300.0,9.94e-05,2]
[398316286,1765531832613,-300.0,9.94e-05,2]
[398316287,1765531832623,-300.0,9.94e-05,2]
[398316288,1765531832635,-300.0,9.94e-05,2]
[398316289,1765531832645,-300.0,9.94e-05,2]
[398316290,1765531832654,-300.0,9.94e-05,2]
[398316291,1765531832664,-300.0,9.94e-05,2]
[398316292,1765531832675,-300.0,9.94e-05,2]
[398316293,1765531832684,-300.0,9.94e-05,2]
[398316294,1765531832695,-300.0,9.94e-05,2]
[398316295,1765531832705,-300.0,9.94e-05,2]
[398316296,1765531832714,-300.0,9.94e-05,2]
[398316297,1765531832724,-4295.29343603,0.00010005,2]
[398316298,1765531832736,-967.18281742,0.00010005,2]
[398316299,1765531832747,-992.43158054,0.00010005,2]
[398316300,1765531832757,-319.27,0.00010037,2]
[398316301,1765531832767,-216.48705973,0.00010221,2]
[398316302,1765531832776,-472.56467274,0.00010221,2]
[398316303,1765531832796,-326.27905362,0.00010221,2]
[398316307,1765531838546,-524.33735732,0.00010221,2]
[398316309,1765531838557,-1372.60415196,0.00010346,2]
[398316310,1765531838602,-139.60280082,0.00010346,2]
[398316311,1765531838613,-2001.676815,0.0001041,2]
[398316312,1765531838623,-403.8708467,0.00010411,2]
[398316313,1765531838636,-397.715535,0.00010411,2]
[398316314,1765531838646,-397.715535,0.00010411,2]
[398316315,1765531838656,-397.715535,0.00010411,2]
[398316316,1765531838667,-397.715535,0.00010411,2]
[398316317,1765531838677,-397.7854818,0.00010411,2]
[398316318,1765531838687,-79.05101709,0.00010411,2]
[398316319,1765531838712,-318.73446471,0.00010411,2]
[398316320,1765531838722,-397.715535,0.00010411,2]
[398316321,1765531838732,-397.715535,0.00010411,2]
[398316322,1765531838742,-397.715535,0.00010411,2]
[398316324,1765531838752,-397.715535,0.00010441,2]
[398316326,1765531838762,-350.72879347,0.00010478,2]
[398316328,1765531838774,-256.41684385,0.00010478,2]
[398316330,1765531838784,-493.58315615,0.00010478,2]
[398316355,1765531843629,-500.3737125,0.00010411,2]
[398316356,1765531843638,-599.27899103,0.00010478,2]
[398316357,1765531843648,-1942.86603944,0.00010478,2]
[398316358,1765531843657,-3035.72818662,0.00010478,2]
[398316359,1765531843668,-397.715535,0.00010541,2]
[398316360,1765531843678,-397.715535,0.00010547,2]
[398316361,1765531843687,-397.715535,0.000107,2]
[398316362,1765531843696,-420.0,0.0001072,2]
[398316363,1765531843706,-1163.0,0.0001072,2]
[398316364,1765531843716,-517.37698586,0.00010767,2]
[398316365,1765531843725,-179.54426046,0.00010824,2]
[398316366,1765531843734,-551.04161627,0.00010959,7]
[398316367,1765531843743,-201.71354004,0.00011077,2]
[398316368,1765531843752,-557.48599835,0.00011119,3]
[398316369,1765531843761,-1313.12788993,0.00011119,3]
[398316370,1765531843771,-2000.0,0.00011302,2]
[398316371,1765531843780,-151.0,0.00011303,2]
[398316372,1765531843790,-689.74008206,0.0001137,2]
[398316410,1765531844442,150.0,7.337e-05,2]
[398316411,1765531845306,253.92,8.004e-05,2]
[398316414,1765531846691,-380.87,8.671e-05,2]
[398316415,1765531846703,-507.83,9.338e-05,2]
[398316416,1765531846713,-105.69098794,0.0001137,2]
[398316417,1765531846723,-500.0,0.00011399,2]
[398316418,1765531846732,-500.0,0.00011399,2]
[398316419,1765531846745,-510.69483544,0.00011399,2]
[398316420,1765531846754,-500.0,0.00011399,2]
[398316421,1765531846764,-500.0,0.00011399,2]
[398316422,1765531846774,-500.0,0.00011399,2]
[398316423,1765531846783,-500.0,0.00011399,2]
[398316424,1765531846793,-306.70279532,0.00011399,2]
[398316425,1765531846802,-500.0,0.00011399,2]
[398316426,1765531846812,-500.0,0.00011399,2]
[398316427,1765531846820,-500.0,0.00011399,2]
[398316428,1765531846830,-500.0,0.00011399,2]
[398316429,1765531846839,-542.8451893,0.00011399,2]
[398316430,1765531846848,-377.78151177,0.00011399,2]
[398316431,1765531846858,-303.33468007,0.00011399,2]
[398316432,1765531846880,-196.66531993,0.00011399,2]
[398316433,1765531846889,-500.0,0.00011399,2]
[398316434,1765531846898,-500.0,0.00011399,2]
[398316435,1765531846907,-500.0,0.00011399,2]
[398316436,1765531846916,-105.10680354,0.00011399,2]
[398316437,1765531926716,150.0,7.341e-05,2]
[398316438,1765531927117,234.49,8.009e-05,2]
[398316439,1765532005865,150.0,7.38e-05,2]
[398316440,1765532006291,232.34,8.051e-05,2]
[398316441,1765532092175,150.0,7.261e-05,2]
[398316442,1765532092583,230.25,7.921e-05,2]
[398316443,1765532175172,150.0,7.259e-05,2]
[398316444,1765532175597,228.21,7.919e-05,2]
[398316445,1765532239473,5000.0,8.424e-05,2]
[398316446,1765532247511,2920.82,8.424e-05,2]
[398316447,1765532247534,2079.18,8.424e-05,2]